bitfinex-derivatives/quotes_BTCF0:USTF0_20250924
["timestamp","ask_amount","ask_price","bid_price","bid_amount"]
[1758691945757,1.25491161,112360.0,112350.0,0.4841679]
[1758691947456,1.00391084,112360.0,112350.0,0.4841679]
[1758691947657,1.25491161,112360.0,112350.0,0.4841679]
[1758691949166,0.44371161,112360.0,112350.0,0.4841679]
[1758691949361,1.25583161,112360.0,112350.0,0.4841679]
[1758691949956,0.44371161,112360.0,112350.0,0.4841679]
[1758691950160,1.25579161,112360.0,112350.0,0.4841679]
[1758691951664,1.00479084,112360.0,112350.0,0.4841679]
[1758691951869,1.25579161,112360.0,112350.0,0.4841679]
[1758691953768,1.25579161,112360.0,112350.0,0.39519]
[1758691954864,1.25579161,112360.0,112350.0,0.4841679]
[1758691957465,1.00479084,112360.0,112350.0,0.4841679]
[1758691957764,1.25579161,112360.0,112350.0,0.4841679]
[1758691959665,1.25579161,112360.0,112350.0,0.39519]
[1758691961065,1.26165161,112360.0,112350.0,0.38249]
[1758691961265,1.26165161,112360.0,112350.0,0.3608]
[1758691961663,1.51265238,112360.0,112350.0,0.3608]
[1758691961870,1.26165161,112360.0,112350.0,0.3608]
[1758691962072,0.1246479,112350.0,112340.0,0.57747547]
[1758691962269,0.37564867,112350.0,112340.0,0.57747547]
[1758691963466,0.39064867,112350.0,112340.0,0.57747547]
[1758691963967,0.39264867,112350.0,112340.0,0.57747547]
[1758691966172,0.39264867,112350.0,112340.0,0.41779146]
[1758691968370,0.39264867,112350.0,112340.0,0.39735]
[1758691970269,0.39264867,112350.0,112340.0,0.38353]
[1758691970466,0.1416479,112350.0,112340.0,0.39696]
[1758691970671,0.39264867,112350.0,112340.0,0.39696]
[1758691971574,0.39264867,112350.0,112340.0,0.4859458]
[1758691971869,0.1290379,112350.0,112340.0,0.4859458]
[1758691972073,0.38003867,112350.0,112340.0,0.4859458]
[1758691972273,1.19111867,112350.0,112340.0,0.4859458]
[1758691972474,1.10214077,112350.0,112340.0,0.4859458]
[1758691973377,1.19111867,112350.0,112340.0,0.4859458]
[1758691978779,1.19159867,112350.0,112340.0,0.4859458]
[1758691980279,0.9405979,112350.0,112340.0,0.4859458]
[1758691980480,1.19159867,112350.0,112340.0,0.4859458]
[1758691981582,1.19159867,112350.0,112340.0,0.64562981]
[1758691982477,1.19159867,112350.0,112340.0,0.4859458]
[1758691989681,1.19159867,112350.0,112340.0,0.64562981]
[1758691991486,0.9405979,112350.0,112340.0,0.64562981]
[1758691991687,1.19159867,112350.0,112340.0,0.64562981]
[1758691991990,0.38003867,112350.0,112340.0,0.55664401]
[1758691992287,0.38003867,112350.0,112340.0,0.15968401]
[1758691992288,1.20376867,112350.0,112340.0,0.15968401]
[1758691992881,0.1110958,112340.0,112330.0,0.41660146]
[1758691993077,0.36209657,112340.0,112330.0,0.41660146]
[1758691993980,0.37363657,112340.0,112330.0,0.41660146]
[1758691994178,0.37363657,112340.0,112330.0,0.40392146]
[1758691995289,0.38263657,112340.0,112330.0,0.40392146]
[1758691996490,0.38263657,112340.0,112330.0,0.04312146]
[1758691996690,0.1119437,112330.0,112320.0,0.55579401]
[1758691996989,1.17406447,112330.0,112320.0,0.39611]
[1758691997886,1.18476447,112330.0,112320.0,0.38317]
[1758691998084,0.1112516,112320.0,112310.0,0.84652674]
[1758691998293,0.36979228,112320.0,112310.0,0.75752214]
[1758691999491,0.36879228,112320.0,112310.0,0.41671584]
[1758692000290,0.36879228,112320.0,112310.0,0.50572534]
[1758692000492,0.11779151,112320.0,112310.0,0.50772534]
[1758692000692,0.36879228,112320.0,112310.0,0.50772534]
[1758692001292,0.36879228,112320.0,112310.0,0.42171584]
[1758692001493,0.44070794,112320.0,112310.0,0.42171584]
[1758692003593,0.44656794,112320.0,112310.0,0.42171584]
[1758692004695,0.76082753,112320.0,112310.0,0.42171584]
[1758692008402,1.16082753,112320.0,112310.0,0.005]
[1758692014314,1.16082753,112320.0,112310.0,0.02635]
[1758692015113,1.97234753,112320.0,112310.0,0.02635]
[1758692015816,1.97230753,112320.0,112310.0,0.02635]
[1758692016614,1.16082753,112320.0,112310.0,0.02635]
[1758692016804,1.97218753,112320.0,112310.0,0.02635]
[1758692019411,1.57218753,112320.0,112310.0,0.02635]
[1758692033726,1.00692717,112320.0,112310.0,0.02635]
[1758692033926,1.56552753,112320.0,112310.0,0.03985]
[1758692035024,1.57138753,112320.0,112310.0,0.03985]
[1758692038126,1.57138753,112320.0,112310.0,0.02635]
[1758692038428,1.57138753,112320.0,112310.0,0.005]
[1758692038725,1.57138753,112320.0,112310.0,0.02716]
[1758692040529,0.18970717,112320.0,112310.0,0.04066]
[1758692040737,1.28253735,112320.0,112310.0,0.80146]
[1758692041133,1.28293735,112320.0,112310.0,0.8904695]
[1758692042932,1.28293735,112320.0,112310.0,1.17309968]
[1758692042933,1.28289735,112320.0,112310.0,1.17309968]
[1758692043129,1.28289735,112320.0,112310.0,0.8904695]
[1758692044337,1.28289735,112320.0,112310.0,0.8904295]
[1758692045033,1.00026717,112320.0,112310.0,0.8904295]
[1758692045237,1.28289735,112320.0,112310.0,0.8904295]
[1758692046746,0.47273735,112320.0,112310.0,0.8904295]
[1758692046944,1.28261735,112320.0,112310.0,0.8904295]
[1758692048243,0.47273735,112320.0,112310.0,0.8904295]
[1758692048438,1.28269735,112320.0,112310.0,0.8904295]
[1758692050746,1.00006717,112320.0,112310.0,0.8904295]
[1758692050947,1.28269735,112320.0,112310.0,0.8904295]
[1758692052950,1.28269735,112320.0,112310.0,0.80142]
[1758692053643,1.28269735,112320.0,112310.0,0.8904296]
[1758692057853,1.28269735,112320.0,112310.0,0.80142]
[1758692058058,1.56532753,112320.0,112310.0,0.80142]
[1758692059058,1.56532753,112320.0,112310.0,0.8013]
[1758692059661,1.56532753,112320.0,112310.0,0.8903096]
[1758692059961,1.28269735,112320.0,112310.0,0.8903096]
[1758692061255,1.00006717,112320.0,112310.0,0.8903096]
[1758692061462,1.28269735,112320.0,112310.0,0.8903096]
[1758692062066,1.00006717,112320.0,112310.0,0.8903096]
[1758692062258,1.28269735,112320.0,112310.0,0.8903096]
[1758692063667,0.47273735,112320.0,112310.0,0.8903096]
[1758692063872,1.28233735,112320.0,112310.0,0.8903096]
[1758692064568,1.25088296,112320.0,112310.0,0.8903096]
[1758692070971,1.1789673,112320.0,112310.0,0.8903096]
[1758692072074,1.1789673,112320.0,112310.0,0.8894696]
[1758692072374,0.00793991,112320.0,112310.0,1.14064539]
[1758692072570,0.0004,112320.0,112310.0,1.14064539]
[1758692072868,0.48998,112330.0,112320.0,0.0890016]
[1758692073076,0.48988,112330.0,112320.0,0.73698739]
[1758692073273,0.51361,112330.0,112320.0,0.4858116]
[1758692073470,0.52088784,112330.0,112320.0,0.4858116]
[1758692073772,0.52128784,112330.0,112320.0,0.4858116]
[1758692074176,0.52088784,112330.0,112320.0,0.4858116]
[1758692074366,0.52128784,112330.0,112320.0,0.4858116]
[1758692074673,0.00947784,112330.0,112320.0,0.73698739]
[1758692075071,0.81903784,112330.0,112320.0,0.73698739]
[1758692075466,0.00947784,112330.0,112320.0,1.13698739]
[1758692076374,0.01847784,112330.0,112320.0,1.13698739]
[1758692078176,0.01,112330.0,112320.0,1.13698739]
[1758692078564,0.0104,112330.0,112320.0,1.13698739]
[1758692078764,0.01,112330.0,112320.0,1.13698739]
[1758692079067,0.0104,112330.0,112320.0,1.13698739]
[1758692079268,0.0104,112330.0,112320.0,1.2966714]
[1758692079469,0.0104,112330.0,112320.0,0.8966714]
[1758692080070,0.0104,112330.0,112320.0,0.73698739]
[1758692084077,0.0104,112330.0,112320.0,1.09778739]
[1758692086878,0.0104,112330.0,112320.0,0.8466116]
[1758692087078,0.0104,112330.0,112320.0,1.09778739]
[1758692088078,0.0104,112330.0,112320.0,1.07778739]
[1758692091179,0.0104,112330.0,112320.0,1.2374714]
[1758692091981,0.0104,112330.0,112320.0,1.07778739]
[1758692092676,0.0104,112330.0,112320.0,0.8266116]
[1758692092981,0.0104,112330.0,112320.0,1.07778739]
[1758692093370,0.0104,112330.0,112320.0,1.47778739]
[1758692093581,0.01,112330.0,112320.0,1.47778739]
[1758692093783,0.0104,112330.0,112320.0,1.47778739]
[1758692104595,0.0094,112330.0,112320.0,1.47778739]
[1758692104798,0.0094,112330.0,112320.0,1.47878739]
[1758692105690,0.0094,112330.0,112320.0,1.6384714]
[1758692106097,0.0034,112330.0,112320.0,1.6384714]
[1758692106297,0.0034,112330.0,112320.0,1.97867456]
[1758692106495,0.003,112330.0,112320.0,1.97867456]
[1758692106698,0.0034,112330.0,112320.0,1.97867456]
[1758692112904,0.0034,112330.0,112320.0,1.81899055]
[1758692113204,0.0034,112330.0,112320.0,1.97832502]
[1758692115808,0.0034,112330.0,112320.0,1.81899055]
[1758692117207,0.0008,112350.0,112340.0,0.1235758]
[1758692117413,0.0008,112350.0,112340.0,1.92634954]
[1758692117710,0.02307,112370.0,112360.0,0.1244199]
[1758692118010,0.02307,112370.0,112360.0,0.86687489]
[1758692118507,0.03114032,112370.0,112360.0,0.86687489]
[1758692118809,0.12010232,112370.0,112360.0,0.86687489]
[1758692119421,0.12510232,112370.0,112360.0,0.86687489]
[1758692121016,0.01307032,112370.0,112360.0,0.86687489]
[1758692121519,0.01307032,112370.0,112360.0,1.11805068]
[1758692121719,0.01347032,112370.0,112360.0,1.11805068]
[1758692121920,0.02007032,112370.0,112360.0,1.11805068]
[1758692122120,0.02047032,112370.0,112360.0,1.11805068]
[1758692122818,0.02047032,112370.0,112360.0,0.86687489]
[1758692123521,0.02047032,112370.0,112360.0,1.92721068]
[1758692123720,0.0124,112370.0,112360.0,1.92721068]
[1758692124122,0.012,112370.0,112360.0,1.92721068]
[1758692124321,0.0124,112370.0,112360.0,1.92721068]
[1758692125025,0.0004,112370.0,112360.0,1.92721068]
[1758692125216,0.0074,112370.0,112360.0,1.92721068]
[1758692126522,0.0074,112370.0,112360.0,1.95825793]
[1758692128926,0.007,112370.0,112360.0,1.95825793]
[1758692129126,0.0074,112370.0,112360.0,1.95825793]
[1758692131728,0.0074,112370.0,112360.0,2.04725361]
[1758692137130,0.0074,112370.0,112360.0,2.44725361]
[1758692137335,0.0001,112380.0,112370.0,0.124412]
[1758692137528,0.00934635,112390.0,112380.0,0.1244041]
[1758692137723,0.00924635,112390.0,112380.0,1.59715164]
[1758692138032,0.00844635,112390.0,112380.0,1.59715164]
[1758692138233,0.0004,112390.0,112380.0,1.59715164]
[1758692139625,0.0134,112390.0,112380.0,1.59715164]
[1758692139825,0.11058405,112390.0,112380.0,1.59715164]
[1758692140037,0.39680709,112390.0,112380.0,1.50819754]
[1758692140244,0.39680709,112390.0,112380.0,1.59715164]
[1758692140541,0.39680709,112390.0,112380.0,1.50819754]
[1758692141338,0.39680709,112390.0,112380.0,1.59715164]
[1758692150242,0.30786089,112390.0,112380.0,1.59715164]
[1758692150438,0.11458405,112390.0,112380.0,1.59715164]
[1758692150643,0.11418405,112390.0,112380.0,1.59715164]
[1758692150842,0.11458405,112390.0,112380.0,1.59715164]
[1758692151043,0.0174,112390.0,112380.0,1.59715164]
[1758692151250,0.0174,112390.0,112380.0,1.87937468]
[1758692151641,0.017,112390.0,112380.0,1.87937468]
[1758692151838,0.0174,112390.0,112380.0,1.59715164]
[1758692152149,0.0174,112390.0,112380.0,1.87937468]
[1758692152345,0.0174,112390.0,112380.0,2.27937468]
[1758692152647,0.017,112390.0,112380.0,2.27937468]
[1758692152944,0.0174,112390.0,112380.0,2.27937468]
[1758692154441,0.0174,112390.0,112380.0,2.36835452]
[1758692154642,0.017,112390.0,112380.0,2.4629526]
[1758692154842,0.017,112390.0,112380.0,2.1021526]
[1758692155146,0.0174,112390.0,112380.0,2.8237526]
[1758692155343,0.017,112390.0,112380.0,2.8237526]
[1758692155544,0.0001,112400.0,112390.0,0.1248462]
[1758692155743,0.0001,112410.0,112400.0,0.14590039]
[1758692155944,0.39358064,112420.0,112410.0,0.1248304]
[1758692156246,0.39428064,112420.0,112410.0,0.76785344]
[1758692157450,0.41328064,112420.0,112410.0,0.76785344]
[1758692157650,0.42165472,112420.0,112410.0,0.76785344]
[1758692158550,0.42565472,112420.0,112410.0,0.76785344]
[1758692160051,0.14343168,112420.0,112410.0,0.76785344]
[1758692160449,0.42565472,112420.0,112410.0,0.76785344]
[1758692160649,0.14343168,112420.0,112410.0,0.76785344]
[1758692160845,0.42565472,112420.0,112410.0,0.76785344]
[1758692161250,0.14343168,112420.0,112410.0,0.76785344]
[1758692161555,0.42565472,112420.0,112410.0,0.76785344]
[1758692162451,0.42565472,112420.0,112410.0,0.3967]
[1758692162655,0.42565472,112420.0,112410.0,0.67892304]
[1758692164055,0.42565472,112420.0,112410.0,0.76785344]
[1758692167252,0.42565472,112420.0,112410.0,0.67892304]
[1758692167458,0.14343168,112420.0,112410.0,0.67892304]
[1758692167662,0.42565472,112420.0,112410.0,0.76785344]
[1758692174256,0.14343168,112420.0,112410.0,0.76785344]
[1758692174458,0.33672712,112420.0,112410.0,0.76785344]
[1758692176057,0.42564962,112420.0,112410.0,0.76785344]
[1758692177057,0.14342658,112420.0,112410.0,0.76785344]
[1758692177259,0.42564962,112420.0,112410.0,0.76785344]
[1758692187773,0.42564962,112420.0,112410.0,0.4856304]
[1758692188074,0.42564962,112420.0,112410.0,0.76785344]
[1758692188776,0.14342658,112420.0,112410.0,0.4856304]
[1758692192977,0.05450408,112420.0,112410.0,0.4856304]
[1758692198286,0.14342668,112420.0,112410.0,0.4856304]
[1758692201880,0.13942668,112420.0,112410.0,0.4856304]
[1758692202080,0.13942668,112420.0,112410.0,0.6449169]
[1758692202282,0.12042668,112420.0,112410.0,0.6449169]
[1758692202482,0.12042668,112420.0,112410.0,0.6539169]
[1758692202988,0.12042668,112420.0,112410.0,0.4946304]
[1758692210489,0.03150408,112420.0,112410.0,0.4946304]
[1758692211683,0.12042668,112420.0,112410.0,0.4946304]
[1758692212695,0.03150408,112420.0,112410.0,0.6539169]
[1758692219392,0.0008,112420.0,112410.0,0.90462702]
[1758692219592,0.0890594,112430.0,112420.0,0.1249826]
[1758692219593,0.1118094,112430.0,112420.0,0.1249826]
[1758692219793,0.1125094,112430.0,112420.0,0.4857826]
[1758692220892,0.03211052,112430.0,112420.0,0.73649272]
[1758692221104,4e-05,112430.0,112420.0,0.73649272]
[1758692221293,0.00144,112430.0,112420.0,1.54513272]
[1758692221597,0.00144,112430.0,112420.0,1.70741922]
[1758692222095,0.00104,112430.0,112420.0,1.70741922]
[1758692222296,0.00144,112430.0,112420.0,1.70741922]
[1758692224301,0.00144,112430.0,112420.0,2.10741922]
[1758692224502,0.00104,112430.0,112420.0,2.10741922]
[1758692224692,0.00144,112430.0,112420.0,2.10741922]
[1758692224891,0.00144,112430.0,112420.0,1.94813272]
[1758692225393,0.00144,112430.0,112420.0,2.0370809]
[1758692225598,0.00104,112430.0,112420.0,2.0370809]
[1758692225802,0.00144,112430.0,112420.0,2.0370809]
[1758692226292,0.0008,112450.0,112440.0,0.1249668]
[1758692226492,0.02275,112460.0,112450.0,0.0888946]
[1758692226800,0.02275,112460.0,112450.0,0.4857546]
[1758692227999,0.1116409,112460.0,112450.0,0.4857546]
[1758692228398,0.1176409,112460.0,112450.0,0.4857546]
[1758692228598,0.12614251,112460.0,112450.0,0.4857546]
[1758692229499,0.14014251,112460.0,112450.0,0.4857546]
[1758692234105,0.05125161,112460.0,112450.0,0.73646472]
[1758692234303,0.05125161,112460.0,112450.0,0.4857546]
[1758692234497,0.14014251,112460.0,112450.0,0.4857546]
[1758692236205,0.14014251,112460.0,112450.0,0.39686]
[1758692237508,0.39085263,112460.0,112450.0,0.39686]
[1758692238703,0.39085263,112460.0,112450.0,0.4857589]
[1758692239406,0.14014251,112460.0,112450.0,0.4857589]
[1758692240208,0.39085263,112460.0,112450.0,0.4857589]
[1758692240409,0.14014251,112460.0,112450.0,0.4857589]
[1758692241408,0.79085263,112460.0,112450.0,0.39686]
[1758692241708,0.80369263,112460.0,112450.0,0.39686]
[1758692241909,0.79085263,112460.0,112450.0,0.39686]
[1758692242108,0.54014251,112460.0,112450.0,0.4857589]
[1758692242303,0.79085263,112460.0,112450.0,0.4857589]
[1758692242509,0.54014251,112460.0,112450.0,0.4857589]
[1758692247707,0.14014251,112460.0,112450.0,0.4857589]
[1758692248600,0.42197757,112460.0,112450.0,0.76759396]
[1758692249000,0.14014251,112460.0,112450.0,0.76759396]
[1758692249205,0.42197757,112460.0,112450.0,0.76759396]
[1758692250908,0.42197757,112460.0,112450.0,0.4857589]
[1758692251116,0.42197757,112460.0,112450.0,0.76759396]
[1758692263531,0.14014251,112460.0,112450.0,0.76759396]
[1758692263730,0.42197757,112460.0,112450.0,0.76759396]
[1758692264930,0.42197757,112460.0,112450.0,0.67869506]
[1758692266730,0.42197757,112460.0,112450.0,0.76759386]
[1758692267530,0.14014251,112460.0,112450.0,0.76759386]
[1758692267732,0.14054251,112460.0,112450.0,0.76759386]
[1758692267930,0.42237757,112460.0,112450.0,0.76759386]
[1758692270332,0.14054251,112460.0,112450.0,0.76759386]
[1758692270728,0.11779251,112460.0,112450.0,0.76759386]
[1758692271628,0.13998251,112460.0,112450.0,0.76759386]
[1758692272027,0.11779251,112460.0,112450.0,0.76759386]
[1758692272928,0.13998251,112460.0,112450.0,0.76759386]
[1758692274233,0.42181757,112460.0,112450.0,0.76759386]
[1758692276337,0.11779251,112460.0,112450.0,1.16759386]
[1758692280736,0.0204,112460.0,112450.0,1.16759386]
[1758692281039,0.02,112460.0,112450.0,1.16759386]
[1758692281238,0.0204,112460.0,112450.0,1.16759386]
[1758692282334,0.0204,112460.0,112450.0,1.32658449]
[1758692283034,0.0204,112460.0,112450.0,1.16759386]
[1758692283840,0.0154,112460.0,112450.0,1.16759386]
[1758692284042,0.0154,112460.0,112450.0,1.32658449]
[1758692284936,0.0134,112460.0,112450.0,1.32658449]
[1758692290346,0.0134,112460.0,112450.0,1.16759386]
[1758692306565,0.0134,112460.0,112450.0,1.52839386]
[1758692310570,0.0134,112460.0,112450.0,1.49699603]
[1758692311570,0.013,112460.0,112450.0,1.49699603]
[1758692311767,0.0134,112460.0,112450.0,1.49699603]
[1758692313470,0.013,112460.0,112450.0,1.67857221]
[1758692313671,0.013,112460.0,112450.0,1.27857221]
[1758692313871,0.0134,112460.0,112450.0,1.27857221]
[1758692314971,0.0134,112460.0,112450.0,1.67857221]
[1758692314972,0.013,112460.0,112450.0,1.67857221]
[1758692315166,0.0134,112460.0,112450.0,1.88707818]
[1758692315374,0.013,112460.0,112450.0,1.88707818]
[1758692316073,0.0104,112460.0,112450.0,1.88707818]
[1758692316373,0.0104,112460.0,112450.0,1.67857221]
[1758692316575,0.01,112460.0,112450.0,1.67857221]
[1758692316776,0.0104,112460.0,112450.0,1.67857221]
[1758692317273,0.0014,112460.0,112450.0,1.68157221]
[1758692318376,0.0014,112460.0,112450.0,1.88832317]
[1758692319573,0.0014,112460.0,112450.0,1.48832317]
[1758692326686,0.0014,112460.0,112450.0,1.28157221]
[1758692331491,0.0014,112460.0,112450.0,1.4881936]
[1758692333199,0.0004,112460.0,112450.0,1.4881936]
[1758692333496,0.0004,112460.0,112450.0,1.4911936]
[1758692333697,0.0004,112460.0,112450.0,1.5051936]
[1758692338593,0.0004,112460.0,112450.0,1.29857221]
[1758692343288,0.0004,112460.0,112450.0,1.04813498]
[1758692343487,0.0004,112460.0,112450.0,1.29857221]
[1758692343994,0.0004,112460.0,112450.0,2.10617221]
[1758692345307,0.0004,112460.0,112450.0,1.29857221]
[1758692345601,0.0004,112460.0,112450.0,2.10617221]
[1758692348203,0.0004,112460.0,112450.0,1.29857221]
[1758692348403,0.0004,112460.0,112450.0,2.12673153]
[1758692352509,0.0004,112460.0,112450.0,1.8762943]
[1758692352709,0.0004,112460.0,112450.0,2.12673153]
[1758692353810,0.0004,112460.0,112450.0,1.31917153]
[1758692354009,0.0004,112460.0,112450.0,2.12673153]
[1758692355509,0.0004,112460.0,112450.0,2.33360174]
[1758692356305,0.0004,112460.0,112450.0,1.52604174]
[1758692356505,0.0004,112460.0,112450.0,2.12669153]
[1758692358911,0.0004,112460.0,112450.0,2.33356174]
[1758692363715,0.0004,112460.0,112450.0,2.12669153]
[1758692367516,0.0001,112470.0,112460.0,0.0888911]
[1758692367722,0.0009,112480.0,112470.0,0.1248032]
[1758692367917,0.0008,112480.0,112470.0,1.70255674]
[1758692368122,0.12055175,112490.0,112480.0,0.03592]
[1758692368418,0.12125175,112490.0,112480.0,0.64715723]
[1758692368611,0.12125175,112490.0,112480.0,0.80623354]
[1758692369115,0.13416175,112490.0,112480.0,0.80623354]
[1758692369318,0.12125175,112490.0,112480.0,0.55579631]
[1758692370116,0.12225175,112490.0,112480.0,0.55579631]
[1758692370526,0.40394033,112490.0,112480.0,0.92636019]
[1758692371219,0.12225175,112490.0,112480.0,0.92636019]
[1758692371420,0.40394033,112490.0,112480.0,0.92636019]
[1758692372128,0.12225175,112490.0,112480.0,0.92636019]
[1758692372319,0.40394033,112490.0,112480.0,0.92636019]
[1758692373929,0.12225175,112490.0,112480.0,0.92636019]
[1758692376830,0.40394033,112490.0,112480.0,0.92636019]
[1758692377131,0.0018,112490.0,112480.0,0.92636019]
[1758692377525,0.001,112490.0,112480.0,0.92636019]
[1758692377926,0.0014,112490.0,112480.0,0.92636019]
[1758692378133,0.001,112490.0,112480.0,0.76728388]
[1758692378429,0.0014,112490.0,112480.0,0.92626913]
[1758692378634,0.0014,112490.0,112480.0,0.99648275]
[1758692379016,0.001,112490.0,112480.0,0.8374975]
[1758692379631,0.0014,112490.0,112480.0,0.8374975]
[1758692379932,0.001,112490.0,112480.0,0.8374975]
[1758692380231,0.0014,112490.0,112480.0,0.8374975]
[1758692380431,0.0014,112490.0,112480.0,0.99641827]
[1758692385631,0.02455,112490.0,112480.0,0.99641827]
[1758692386934,0.02455,112490.0,112480.0,1.80365827]
[1758692388240,0.0014,112490.0,112480.0,1.80365827]
[1758692388639,0.02318,112490.0,112480.0,1.80361827]
[1758692390945,0.0014,112490.0,112480.0,1.80361827]
[1758692399154,0.0014,112490.0,112480.0,1.52192969]
[1758692399356,0.0014,112490.0,112480.0,1.80361827]
[1758692400856,0.0014,112490.0,112480.0,2.20361827]
[1758692401050,0.001,112490.0,112480.0,2.30413033]
[1758692401252,0.001,112490.0,112480.0,2.39303107]
[1758692401755,0.0014,112490.0,112480.0,1.99303107]
[1758692401950,0.0902674,112490.0,112480.0,1.71462297]
[1758692402858,0.1120474,112490.0,112480.0,1.71462297]
[1758692403557,0.80693598,112490.0,112480.0,0.83732935]
[1758692403765,0.80693598,112490.0,112480.0,1.47274858]
[1758692404451,0.80693598,112490.0,112480.0,0.38402]
[1758692404846,0.80693598,112490.0,112480.0,0.66570858]
[1758692405248,0.80693598,112490.0,112480.0,0.38402]
[1758692405649,0.80693598,112490.0,112480.0,0.66570858]
[1758692405856,0.5252474,112490.0,112480.0,0.66570858]
[1758692406062,0.80693598,112490.0,112480.0,0.66570858]
[1758692407761,0.80693598,112490.0,112480.0,0.67859858]
[1758692409162,0.80693598,112490.0,112480.0,0.39691]
[1758692409363,0.80693598,112490.0,112480.0,0.67859858]
[1758692409962,0.1120474,112490.0,112480.0,0.67859858]
[1758692410164,0.1116474,112490.0,112480.0,0.67859858]
[1758692410365,0.1120474,112490.0,112480.0,0.67859858]
[1758692412459,0.1120474,112490.0,112480.0,0.76747388]
[1758692414762,0.1120474,112490.0,112480.0,0.67859858]
[1758692416966,0.1120474,112490.0,112480.0,0.76747388]
[1758692417573,0.0898674,112490.0,112480.0,0.76747388]
[1758692417776,0.0902674,112490.0,112480.0,0.76747388]
[1758692418167,0.0898674,112490.0,112480.0,0.76747388]
[1758692418368,0.0902674,112490.0,112480.0,0.76747388]
[1758692418869,0.0902674,112490.0,112480.0,0.92639465]
[1758692419779,0.0902674,112490.0,112480.0,0.76747388]
[1758692421077,0.0902674,112490.0,112480.0,0.83977069]
[1758692421279,0.0014,112490.0,112480.0,0.83977069]
[1758692424582,0.0014,112490.0,112480.0,0.99869146]
[1758692427883,0.0014,112490.0,112480.0,0.83977069]
[1758692429579,0.0902674,112490.0,112480.0,0.83977069]
[1758692431286,0.1123474,112490.0,112480.0,0.83977069]
[1758692432386,0.0902674,112490.0,112480.0,0.83977069]
[1758692432585,0.1123474,112490.0,112480.0,0.8084303]
[1758692433389,0.0902674,112490.0,112480.0,0.8084303]
[1758692434084,0.1123474,112490.0,112480.0,0.8084303]
[1758692435487,0.0902674,112490.0,112480.0,0.8084303]
[1758692435688,0.0902674,112490.0,112480.0,0.96735107]
[1758692436092,0.1123474,112490.0,112480.0,0.96735107]
[1758692437293,0.0014,112490.0,112480.0,1.06720753]
[1758692438094,0.0014,112490.0,112480.0,0.90828676]
[1758692440094,0.001,112490.0,112480.0,0.91705192]
[1758692440296,0.0014,112490.0,112480.0,1.31705192]
[1758692440495,0.001,112490.0,112480.0,0.91705192]
[1758692440796,0.0014,112490.0,112480.0,0.90828676]
[1758692442600,0.0014,112490.0,112480.0,0.9169789]
[1758692443898,0.0014,112490.0,112480.0,0.90828676]
[1758692446397,0.0902674,112490.0,112480.0,0.81941146]
[1758692446598,0.1123474,112490.0,112480.0,0.90828676]
[1758692447401,0.0902674,112490.0,112480.0,0.90828676]
[1758692448899,0.1118374,112490.0,112480.0,0.8084303]
[1758692449090,0.1118374,112490.0,112480.0,1.6153103]
[1758692449901,0.1118374,112490.0,112480.0,1.36496211]
[1758692450105,0.1118374,112490.0,112480.0,1.526435]
[1758692450409,0.1245274,112490.0,112480.0,1.526435]
[1758692450904,0.1118374,112490.0,112480.0,1.526435]
[1758692452208,0.1118374,112490.0,112480.0,1.6153103]
[1758692454910,0.1118374,112490.0,112480.0,1.36496211]
[1758692455101,0.1118374,112490.0,112480.0,1.6153103]
[1758692457711,0.1245274,112490.0,112480.0,0.38402]
[1758692457904,0.77487559,112490.0,112480.0,0.38402]
[1758692458106,0.5245274,112490.0,112480.0,0.38402]
[1758692461211,0.5245274,112490.0,112480.0,0.39776]
[1758692463315,0.5235274,112490.0,112480.0,0.40276]
[1758692464617,0.5235274,112490.0,112480.0,0.39776]
[1758692465415,0.5245274,112490.0,112480.0,0.39776]
[1758692466019,0.5245274,112490.0,112480.0,0.73698349]
[1758692466213,0.5118374,112490.0,112480.0,0.73698349]
[1758692466414,0.5118374,112490.0,112480.0,0.64810819]
[1758692467414,0.42297,112490.0,112480.0,0.73698349]
[1758692467619,0.001,112490.0,112480.0,1.0580715]
[1758692467819,0.0014,112490.0,112480.0,0.80772331]
[1758692468123,0.001,112490.0,112480.0,0.80772331]
[1758692468322,0.0014,112490.0,112480.0,0.80772331]
[1758692474631,0.001,112490.0,112480.0,0.80772331]
[1758692474830,0.0014,112490.0,112480.0,0.80772331]
[1758692476233,0.0014,112490.0,112480.0,0.89662405]
[1758692476526,0.001,112490.0,112480.0,0.89662405]
[1758692476732,0.0014,112490.0,112480.0,0.89662405]
[1758692477833,0.0014,112490.0,112480.0,1.14697224]
[1758692478033,0.0014,112490.0,112480.0,0.89662405]
[1758692487136,0.0014,112490.0,112480.0,1.54697224]
[1758692487639,0.001,112490.0,112480.0,1.54697224]
[1758692487934,0.001,112490.0,112480.0,1.70589301]
[1758692487935,0.0014,112490.0,112480.0,1.70589301]
[1758692488640,0.0014,112490.0,112480.0,1.72654089]
[1758692488935,0.0014,112490.0,112480.0,1.56762012]
[1758692492643,0.0014,112490.0,112480.0,1.63001786]
[1758692492940,0.0014,112490.0,112480.0,1.725435]
[1758692499145,0.0001,112500.0,112490.0,0.1238274]
[1758692499446,0.0009,112510.0,112500.0,0.1238195]
[1758692499647,0.0008,112510.0,112500.0,1.06870632]
[1758692501845,0.0048,112510.0,112500.0,1.06870632]
[1758692502045,0.004,112510.0,112500.0,1.06870632]
[1758692502449,0.0044,112510.0,112500.0,1.06870632]
[1758692502950,0.0044,112510.0,112500.0,1.07738554]
[1758692503350,0.0004,112510.0,112500.0,1.07738554]
[1758692503650,0.0024,112510.0,112500.0,1.07738554]
[1758692503949,0.0024,112510.0,112500.0,1.06870632]
[1758692504150,0.0084,112510.0,112500.0,0.5056122]
[1758692504348,0.0084,112510.0,112500.0,1.06870632]
[1758692505349,0.0084,112510.0,112500.0,1.1798041]
[1758692520657,0.0084,112510.0,112500.0,1.06870632]
[1758692521160,0.0084,112510.0,112500.0,1.18001602]
[1758692522054,0.0084,112510.0,112500.0,1.28284521]
[1758692522764,0.0084,112510.0,112500.0,1.17153551]
[1758692529369,0.0084,112510.0,112500.0,1.53233551]
[1758692534066,0.0024,112510.0,112500.0,1.53233551]
[1758692534265,0.0024,112510.0,112500.0,1.54333551]
[1758692534869,0.0004,112510.0,112500.0,1.54533551]
[1758692537259,0.0004,112510.0,112500.0,0.98224139]
[1758692537456,0.0004,112510.0,112500.0,1.54533551]
[1758692545274,0.0004,112510.0,112500.0,0.98224139]
[1758692545572,0.0004,112510.0,112500.0,1.54533551]
[1758692550268,0.0004,112510.0,112500.0,1.53433551]
[1758692550469,0.0004,112510.0,112500.0,1.54533551]
[1758692550870,0.0004,112510.0,112500.0,1.54333551]
[1758692551069,0.0004,112510.0,112500.0,1.54533551]